[Event "Early-Titled-Tuesday-Blitz-October-24-2023"]
[Site "Chess.com"]
[Date "2023.10.24"]
[Round "4"]
[White "AsselLesbekova"]
[Black "dennisodessa"]
[Result "0-1"]
[WhiteElo "2218"]
[BlackElo "2561"]
[TimeControl "180+1"]
[EndTime "8:38:24 PDT"]
[Termination "dennisodessa won by resignation"]

1. e4 {[%clk 0:03:00.9]} 1... e6 {[%clk 0:03:00]} 2. d4 {[%clk 0:03:00.4]} 2...
d5 {[%clk 0:03:00.6]} 3. Nc3 {[%clk 0:03:00]} 3... Bb4 {[%clk 0:03:00.3]} 4. Ne2
{[%clk 0:02:59.1]} 4... dxe4 {[%clk 0:02:59.7]} 5. a3 {[%clk 0:02:59.6]} 5...
Bxc3+ {[%clk 0:03:00.3]} 6. Nxc3 {[%clk 0:03:00.4]} 6... Nf6 {[%clk 0:03:01]} 7.
Bg5 {[%clk 0:02:43.8]} 7... Nbd7 {[%clk 0:02:47.1]} 8. Nxe4 {[%clk 0:02:42.8]}
8... h6 {[%clk 0:02:47.1]} 9. Nxf6+ {[%clk 0:02:40.2]} 9... Nxf6 {[%clk
0:02:48]} 10. Be3 {[%clk 0:02:40.2]} 10... Bd7 {[%clk 0:02:29.2]} 11. Be2 {[%clk
0:02:36.2]} 11... Bc6 {[%clk 0:02:28.6]} 12. Bf3 {[%clk 0:02:35.7]} 12... Qd7
{[%clk 0:02:28.5]} 13. Qe2 {[%clk 0:02:32.1]} 13... O-O {[%clk 0:02:27.8]} 14.
O-O {[%clk 0:02:28.4]} 14... a6 {[%clk 0:02:06.8]} 15. Rad1 {[%clk 0:02:19.4]}
15... Rad8 {[%clk 0:02:06.5]} 16. Rfe1 {[%clk 0:02:17.3]} 16... Rfe8 {[%clk
0:02:02.5]} 17. c4 {[%clk 0:02:14.3]} 17... Bxf3 {[%clk 0:01:54]} 18. Qxf3
{[%clk 0:02:12.4]} 18... c6 {[%clk 0:01:48.6]} 19. h3 {[%clk 0:02:04.1]} 19...
Qc7 {[%clk 0:01:41.7]} 20. Bxh6 {[%clk 0:02:01.5]} 20... e5 {[%clk 0:01:35.1]}
21. dxe5 {[%clk 0:01:36.2]} 21... Rxd1 {[%clk 0:01:34.5]} 22. Rxd1 {[%clk
0:01:37.1]} 22... Qxe5 {[%clk 0:01:35.4]} 23. Bc1 {[%clk 0:01:25.4]} 23... Qe2
{[%clk 0:01:25]} 24. Qxe2 {[%clk 0:01:03.8]} 24... Rxe2 {[%clk 0:01:25.9]} 25.
Kf1 {[%clk 0:01:04.4]} 25... Rc2 {[%clk 0:01:25.7]} 26. b4 {[%clk 0:01:01.7]}
26... Rxc4 {[%clk 0:01:21.3]} 27. Bb2 {[%clk 0:00:57.4]} 27... Nd5 {[%clk
0:01:07]} 28. Re1 {[%clk 0:00:42.6]} 28... Kf8 {[%clk 0:00:55.4]} 29. g3 {[%clk
0:00:37.5]} 29... f6 {[%clk 0:00:51.8]} 30. Rc1 {[%clk 0:00:35.3]} 30... Rxc1+
{[%clk 0:00:36.1]} 31. Bxc1 {[%clk 0:00:36.2]} 31... Ke7 {[%clk 0:00:27.5]} 32.
Ke2 {[%clk 0:00:36.2]} 32... b6 {[%clk 0:00:27.2]} 33. Kd3 {[%clk 0:00:34.5]}
33... Kd6 {[%clk 0:00:27.8]} 34. Kc4 {[%clk 0:00:32.7]} 34... c5 {[%clk
0:00:27.7]} 35. bxc5+ {[%clk 0:00:32]} 35... bxc5 {[%clk 0:00:28.6]} 36. Bf4+
{[%clk 0:00:20.7]} 36... Nxf4 {[%clk 0:00:25.5]} 37. gxf4 {[%clk 0:00:21.6]}
37... f5 {[%clk 0:00:23.8]} 38. h4 {[%clk 0:00:21.5]} 38... g6 {[%clk
0:00:22.9]} 39. f3 {[%clk 0:00:18.9]} 39... Kc6 {[%clk 0:00:22]} 40. a4 {[%clk
0:00:18.1]} 40... Kd6 {[%clk 0:00:20]} 41. Kc3 {[%clk 0:00:15.3]} 41... Kd5
{[%clk 0:00:20.1]} 42. Kd3 {[%clk 0:00:15.5]} 42... c4+ {[%clk 0:00:20.4]} 43.
Kc3 {[%clk 0:00:15.8]} 43... Kc5 {[%clk 0:00:21.1]} 44. a5 {[%clk 0:00:15.1]}
44... Kd5 {[%clk 0:00:20.6]} 45. Kc2 {[%clk 0:00:11.6]} 45... Kd4 {[%clk
0:00:21.5]} 46. Kd2 {[%clk 0:00:12.1]} 46... c3+ {[%clk 0:00:17.1]} 47. Kc2
{[%clk 0:00:12.5]} 47... Kc4 {[%clk 0:00:17.2]} 48. Kc1 {[%clk 0:00:12.8]} 48...
Kd3 {[%clk 0:00:16.3]} 49. Kd1 {[%clk 0:00:12.5]} 49... Kc4 {[%clk 0:00:14.8]}
50. Kc2 {[%clk 0:00:11.9]} 50... Kb4 {[%clk 0:00:15]} 51. Kc1 {[%clk 0:00:11.9]}
51... Kxa5 {[%clk 0:00:15.3]} 0-1

[Event "Early-Titled-Tuesday-Blitz-October-24-2023"]
[Site "Chess.com"]
[Date "2023.10.24"]
[Round "4"]
[White "MokshAD1603"]
[Black "RamyresCoelho"]
[Result "1-0"]
[WhiteElo "2610"]
[BlackElo "2303"]
[TimeControl "180+1"]
[EndTime "8:38:28 PDT"]
[Termination "MokshAD1603 won by checkmate"]

1. c4 {[%clk 0:02:56.9]} 1... e5 {[%clk 0:02:59.3]} 2. g3 {[%clk 0:02:49.9]}
2... Ne7 {[%clk 0:02:58.9]} 3. Bg2 {[%clk 0:02:46.4]} 3... g6 {[%clk 0:02:58.5]}
4. Nc3 {[%clk 0:02:35.8]} 4... Bg7 {[%clk 0:02:57.5]} 5. e3 {[%clk 0:02:32.8]}
5... d6 {[%clk 0:02:55.1]} 6. h4 {[%clk 0:02:32]} 6... h5 {[%clk 0:02:47]} 7.
Nge2 {[%clk 0:01:28.2]} 7... Nbc6 {[%clk 0:02:28]} 8. d4 {[%clk 0:01:26.3]} 8...
exd4 {[%clk 0:02:24.4]} 9. exd4 {[%clk 0:01:27.2]} 9... O-O {[%clk 0:02:15]} 10.
O-O {[%clk 0:01:25.1]} 10... Bg4 {[%clk 0:01:59.2]} 11. Be3 {[%clk 0:01:18.8]}
11... Nf5 {[%clk 0:01:49.5]} 12. Qd2 {[%clk 0:01:16.3]} 12... Nxe3 {[%clk
0:01:48.7]} 13. fxe3 {[%clk 0:01:17.2]} 13... Re8 {[%clk 0:01:40.3]} 14. Rae1
{[%clk 0:01:14.2]} 14... Qd7 {[%clk 0:01:18.6]} 15. Kh2 {[%clk 0:01:14.1]} 15...
Ne7 {[%clk 0:01:14.2]} 16. Nf4 {[%clk 0:01:10.6]} 16... Nf5 {[%clk 0:01:11.1]}
17. Bxb7 {[%clk 0:01:10]} 17... Rab8 {[%clk 0:01:07.6]} 18. Bg2 {[%clk 0:01:10]}
18... Bh6 {[%clk 0:01:01.2]} 19. Ncd5 {[%clk 0:01:04.8]} 19... Bg7 {[%clk
0:00:58.8]} 20. b3 {[%clk 0:01:04]} 20... c6 {[%clk 0:00:58.6]} 21. Nc3 {[%clk
0:01:03.9]} 21... Qe7 {[%clk 0:00:56.1]} 22. Bxc6 {[%clk 0:01:01.5]} 22... Rec8
{[%clk 0:00:34.5]} 23. Bg2 {[%clk 0:00:57.5]} 23... Re8 {[%clk 0:00:33.7]} 24.
Qd3 {[%clk 0:00:53]} 24... g5 {[%clk 0:00:33.3]} 25. Nfd5 {[%clk 0:00:51.2]}
25... Qd8 {[%clk 0:00:31]} 26. Rxf5 {[%clk 0:00:50.3]} 26... Bxf5 {[%clk
0:00:30.1]} 27. Qxf5 {[%clk 0:00:50.2]} 27... gxh4 {[%clk 0:00:30.7]} 28. Be4
{[%clk 0:00:49.8]} 28... hxg3+ {[%clk 0:00:30.3]} 29. Kg2 {[%clk 0:00:50.2]}
29... Qh4 {[%clk 0:00:25.6]} 30. Rh1 {[%clk 0:00:49.3]} 30... Qg4 {[%clk
0:00:21.1]} 31. Rxh5 {[%clk 0:00:44.5]} 31... Qxf5 {[%clk 0:00:18.8]} 32. Rxf5
{[%clk 0:00:44.5]} 32... a5 {[%clk 0:00:16.8]} 33. Bd3 {[%clk 0:00:40]} 33...
Re6 {[%clk 0:00:12.4]} 34. Kf3 {[%clk 0:00:36.7]} 34... Rg6 {[%clk 0:00:11.7]}
35. Kg2 {[%clk 0:00:36.1]} 35... Re6 {[%clk 0:00:11.1]} 36. Kxg3 {[%clk
0:00:36]} 36... Rg6+ {[%clk 0:00:11.4]} 37. Kf3 {[%clk 0:00:36.2]} 37... Rh6
{[%clk 0:00:11.5]} 38. Rf4 {[%clk 0:00:35.7]} 38... Re8 {[%clk 0:00:11.1]} 39.
Ne4 {[%clk 0:00:34.7]} 39... Rh3+ {[%clk 0:00:11.2]} 40. Ke2 {[%clk 0:00:34.8]}
40... Rh2+ {[%clk 0:00:11.3]} 41. Kd1 {[%clk 0:00:34.6]} 41... Rh1+ {[%clk
0:00:11.4]} 42. Kc2 {[%clk 0:00:34.4]} 42... Rh2+ {[%clk 0:00:12.3]} 43. Kc3
{[%clk 0:00:35]} 43... Rxa2 {[%clk 0:00:12.3]} 44. Nef6+ {[%clk 0:00:35.4]}
44... Bxf6 {[%clk 0:00:11.6]} 45. Nxf6+ {[%clk 0:00:36.3]} 45... Kf8 {[%clk
0:00:12.5]} 46. Nxe8 {[%clk 0:00:37.2]} 46... Kxe8 {[%clk 0:00:13.4]} 47. Rf5
{[%clk 0:00:36.6]} 47... a4 {[%clk 0:00:13.5]} 48. bxa4 {[%clk 0:00:36.4]} 48...
Rxa4 {[%clk 0:00:14.4]} 49. c5 {[%clk 0:00:37.1]} 49... dxc5 {[%clk 0:00:14.2]}
50. Bb5+ {[%clk 0:00:37.4]} 50... Ke7 {[%clk 0:00:13.8]} 51. Bxa4 {[%clk
0:00:38.3]} 51... Ke6 {[%clk 0:00:14.7]} 52. Rxc5 {[%clk 0:00:38.3]} 52... Kd6
{[%clk 0:00:14.7]} 53. Kc4 {[%clk 0:00:39.2]} 53... f5 {[%clk 0:00:14.9]} 54.
Rxf5 {[%clk 0:00:39.5]} 54... Kc7 {[%clk 0:00:15.1]} 55. Kd5 {[%clk 0:00:40.4]}
55... Kb6 {[%clk 0:00:16]} 56. Kd6 {[%clk 0:00:40.1]} 56... Ka7 {[%clk
0:00:16.1]} 57. e4 {[%clk 0:00:41]} 57... Kb6 {[%clk 0:00:17]} 58. e5 {[%clk
0:00:41.9]} 58... Kb7 {[%clk 0:00:17.4]} 59. e6 {[%clk 0:00:42.4]} 59... Kc8
{[%clk 0:00:18.3]} 60. e7 {[%clk 0:00:42.4]} 60... Kb7 {[%clk 0:00:18.6]} 61.
Rb5+ {[%clk 0:00:41.1]} 61... Ka6 {[%clk 0:00:17.7]} 62. e8=Q {[%clk 0:00:40.4]}
62... Ka7 {[%clk 0:00:16.9]} 63. Qb8+ {[%clk 0:00:41.3]} 63... Ka6 {[%clk
0:00:17]} 64. Qb6# {[%clk 0:00:42.2]} 1-0

[Event "Early-Titled-Tuesday-Blitz-October-24-2023"]
[Site "Chess.com"]
[Date "2023.10.24"]
[Round "4"]
[White "masterofpuppets2"]
[Black "GianmarcoVaR"]
[Result "1-0"]
[WhiteElo "2541"]
[BlackElo "2728"]
[TimeControl "180+1"]
[EndTime "8:38:33 PDT"]
[Termination "masterofpuppets2 won by checkmate"]

1. d4 {[%clk 0:03:00.9]} 1... Nf6 {[%clk 0:02:58.4]} 2. c4 {[%clk 0:03:00.5]}
2... e6 {[%clk 0:02:54.2]} 3. Nf3 {[%clk 0:03:00.5]} 3... d5 {[%clk 0:02:50.8]}
4. Nc3 {[%clk 0:03:00.5]} 4... a6 {[%clk 0:02:50.9]} 5. c5 {[%clk 0:03:00.3]}
5... Nc6 {[%clk 0:02:50]} 6. Bf4 {[%clk 0:02:50.8]} 6... Nh5 {[%clk 0:02:48.8]}
7. e3 {[%clk 0:02:47.4]} 7... Nxf4 {[%clk 0:02:15.3]} 8. exf4 {[%clk 0:02:48.3]}
8... b6 {[%clk 0:02:07.4]} 9. cxb6 {[%clk 0:02:41.5]} 9... cxb6 {[%clk
0:02:06.7]} 10. Bd3 {[%clk 0:02:41.7]} 10... Bd6 {[%clk 0:02:04.9]} 11. Ne5
{[%clk 0:02:36.5]} 11... Bb7 {[%clk 0:01:51.3]} 12. O-O {[%clk 0:02:21.8]} 12...
O-O {[%clk 0:01:29.9]} 13. Qh5 {[%clk 0:02:09.7]} 13... g6 {[%clk 0:01:24.1]}
14. Qd1 {[%clk 0:02:01.2]} 14... Nxd4 {[%clk 0:01:05]} 15. Bxg6 {[%clk
0:01:57.1]} 15... hxg6 {[%clk 0:01:05.2]} 16. Qxd4 {[%clk 0:01:56.6]} 16... Bc5
{[%clk 0:00:59.1]} 17. Qd3 {[%clk 0:01:54.3]} 17... Kg7 {[%clk 0:00:40.5]} 18.
Rad1 {[%clk 0:01:36.1]} 18... b5 {[%clk 0:00:38.5]} 19. Ne4 {[%clk 0:01:21.7]}
19... dxe4 {[%clk 0:00:26.9]} 20. Qc3 {[%clk 0:01:21.7]} 20... Bxf2+ {[%clk
0:00:27.5]} 21. Kxf2 {[%clk 0:00:51.2]} 21... Qf6 {[%clk 0:00:28.1]} 22. Ke3
{[%clk 0:00:51.5]} 22... Rac8 {[%clk 0:00:26.6]} 23. Qb4 {[%clk 0:00:38.6]}
23... Rfd8 {[%clk 0:00:23.4]} 24. Nd7 {[%clk 0:00:20]} 24... Rxd7 {[%clk
0:00:07.3]} 25. Rxd7 {[%clk 0:00:19.8]} 25... Bd5 {[%clk 0:00:06.8]} 26. Qd4
{[%clk 0:00:17.7]} 26... Qxd4+ {[%clk 0:00:03.3]} 27. Kxd4 {[%clk 0:00:18.6]}
27... Rc2 {[%clk 0:00:03.9]} 28. g4 {[%clk 0:00:15]} 28... Bc4 {[%clk
0:00:01.9]} 29. Rd1 {[%clk 0:00:13.7]} 29... Bd3 {[%clk 0:00:01.9]} 30. b3
{[%clk 0:00:09.4]} 30... Rxa2 {[%clk 0:00:01.8]} 31. h4 {[%clk 0:00:09.1]} 31...
Rg2 {[%clk 0:00:02.1]} 32. f5 {[%clk 0:00:06.3]} 32... gxf5 {[%clk 0:00:02]} 33.
gxf5 {[%clk 0:00:06.6]} 33... exf5 {[%clk 0:00:02.9]} 34. Ke5 {[%clk 0:00:07]}
34... Kg6 {[%clk 0:00:02.4]} 35. Rd6+ {[%clk 0:00:05.9]} 35... Kh5 {[%clk
0:00:02.1]} 36. Rf6 {[%clk 0:00:05.7]} 36... Rf2 {[%clk 0:00:02]} 37. Rxf7
{[%clk 0:00:05.3]} 37... Kg4 {[%clk 0:00:02.1]} 38. Rg1+ {[%clk 0:00:04.8]}
38... Kf3 {[%clk 0:00:02.1]} 39. Rxf5+ {[%clk 0:00:04.5]} 39... Ke2 {[%clk
0:00:03]} 40. Rxf2+ {[%clk 0:00:03]} 40... Kxf2 {[%clk 0:00:03.4]} 41. Rd1
{[%clk 0:00:02.5]} 41... Bc2 {[%clk 0:00:03]} 42. Rd2+ {[%clk 0:00:02.4]} 42...
Ke3 {[%clk 0:00:02.3]} 43. Rxc2 {[%clk 0:00:03.3]} 43... Kd3 {[%clk 0:00:03.2]}
44. Rc1 {[%clk 0:00:02.8]} 44... a5 {[%clk 0:00:04.1]} 45. h5 {[%clk 0:00:02.2]}
45... e3 {[%clk 0:00:05]} 46. Re1 {[%clk 0:00:02.5]} 46... Kd2 {[%clk
0:00:05.9]} 47. Rh1 {[%clk 0:00:03.2]} 47... a4 {[%clk 0:00:06.2]} 48. bxa4
{[%clk 0:00:02.7]} 48... bxa4 {[%clk 0:00:07.1]} 49. h6 {[%clk 0:00:03.4]} 49...
a3 {[%clk 0:00:08]} 50. h7 {[%clk 0:00:03.9]} 50... a2 {[%clk 0:00:08.9]} 51.
h8=Q {[%clk 0:00:04.4]} 51... a1=Q+ {[%clk 0:00:09.8]} 52. Rxa1 {[%clk
0:00:03.2]} 52... e2 {[%clk 0:00:10.3]} 53. Qh2 {[%clk 0:00:03.5]} 53... Kd3
{[%clk 0:00:10.4]} 54. Qh3+ {[%clk 0:00:03.7]} 54... Kd2 {[%clk 0:00:11]} 55.
Ra2+ {[%clk 0:00:04.1]} 55... Kd1 {[%clk 0:00:11.7]} 56. Qd3+ {[%clk 0:00:04.1]}
56... Kc1 {[%clk 0:00:12.1]} 57. Qc2# {[%clk 0:00:04.5]} 1-0

[Event "Early-Titled-Tuesday-Blitz-October-24-2023"]
[Site "Chess.com"]
[Date "2023.10.24"]
[Round "4"]
[White "OhanyanEminChess"]
[Black "Oleksandr_Bortnyk"]
[Result "0-1"]
[WhiteElo "2810"]
[BlackElo "3045"]
[TimeControl "180+1"]
[EndTime "8:38:36 PDT"]
[Termination "Oleksandr_Bortnyk won by resignation"]

1. d4 {[%clk 0:03:00.9]} 1... Nf6 {[%clk 0:02:16.3]} 2. c4 {[%clk 0:03:00.5]}
2... d6 {[%clk 0:02:13.4]} 3. Nc3 {[%clk 0:03:00.7]} 3... g6 {[%clk 0:02:14.1]}
4. e4 {[%clk 0:03:01.1]} 4... Bg7 {[%clk 0:02:14.8]} 5. Be2 {[%clk 0:03:01.8]}
5... O-O {[%clk 0:02:09.4]} 6. Be3 {[%clk 0:03:02.4]} 6... Na6 {[%clk
0:02:01.7]} 7. Nf3 {[%clk 0:03:01.7]} 7... e5 {[%clk 0:02:01.7]} 8. O-O {[%clk
0:03:01.7]} 8... Qe7 {[%clk 0:02:01.7]} 9. dxe5 {[%clk 0:02:59.5]} 9... dxe5
{[%clk 0:02:02.6]} 10. Nd5 {[%clk 0:03:00.3]} 10... Qd8 {[%clk 0:02:02.8]} 11.
Bg5 {[%clk 0:02:51]} 11... c6 {[%clk 0:01:43]} 12. Nxf6+ {[%clk 0:02:32.2]}
12... Bxf6 {[%clk 0:01:43.9]} 13. Qxd8 {[%clk 0:02:22.2]} 13... Bxd8 {[%clk
0:01:44.8]} 14. Bh6 {[%clk 0:02:16.6]} 14... Re8 {[%clk 0:01:44]} 15. a3 {[%clk
0:02:16.5]} 15... Nc5 {[%clk 0:01:41.5]} 16. Nd2 {[%clk 0:02:14]} 16... a5
{[%clk 0:01:38.5]} 17. b4 {[%clk 0:02:10.5]} 17... Ne6 {[%clk 0:01:37.9]} 18.
Nf3 {[%clk 0:02:09.1]} 18... g5 {[%clk 0:01:29.4]} 19. Rfd1 {[%clk 0:01:54.5]}
19... f6 {[%clk 0:01:28]} 20. h4 {[%clk 0:01:30.6]} 20... g4 {[%clk 0:01:26.1]}
21. Nh2 {[%clk 0:01:25.9]} 21... g3 {[%clk 0:01:13.5]} 22. fxg3 {[%clk
0:01:16.9]} 22... Nd4 {[%clk 0:01:10.6]} 23. Bh5 {[%clk 0:01:13.2]} 23... Re7
{[%clk 0:01:09.8]} 24. Nf3 {[%clk 0:01:12.2]} 24... Be6 {[%clk 0:00:51.6]} 25.
Nxd4 {[%clk 0:00:53]} 25... exd4 {[%clk 0:00:52.5]} 26. c5 {[%clk 0:00:39.6]}
26... Bc7 {[%clk 0:00:51.8]} 27. Bf4 {[%clk 0:00:24.5]} 27... Be5 {[%clk
0:00:51.7]} 28. Rab1 {[%clk 0:00:07.1]} 28... axb4 {[%clk 0:00:43.8]} 29. axb4
{[%clk 0:00:08]} 29... Rd7 {[%clk 0:00:38.5]} 30. Be2 {[%clk 0:00:06.5]} 30...
Ra2 {[%clk 0:00:36.8]} 31. Bd3 {[%clk 0:00:06.2]} 31... Rd8 {[%clk 0:00:37.3]}
32. Ra1 {[%clk 0:00:03.4]} 32... Rda8 {[%clk 0:00:38]} 33. Rxa2 {[%clk
0:00:03.9]} 33... Rxa2 {[%clk 0:00:38.9]} 34. Rd2 {[%clk 0:00:02.5]} 34... Rxd2
{[%clk 0:00:38.7]} 35. Bxd2 {[%clk 0:00:03]} 35... Bxg3 {[%clk 0:00:39.6]} 36.
h5 {[%clk 0:00:02.5]} 36... Kg7 {[%clk 0:00:32.4]} 37. b5 {[%clk 0:00:03.1]}
37... h6 {[%clk 0:00:30.6]} 38. bxc6 {[%clk 0:00:02.9]} 38... bxc6 {[%clk
0:00:31.5]} 39. Ba6 {[%clk 0:00:03.1]} 39... Bb3 {[%clk 0:00:23.8]} 40. Kf1
{[%clk 0:00:02.8]} 40... Bc2 {[%clk 0:00:21.5]} 41. Be2 {[%clk 0:00:02]} 41...
Bxe4 {[%clk 0:00:20]} 42. Bf3 {[%clk 0:00:02.7]} 42... Bd3+ {[%clk 0:00:16.2]}
43. Kg1 {[%clk 0:00:02.6]} 43... Bb5 {[%clk 0:00:15.7]} 44. Be4 {[%clk
0:00:03.3]} 44... Bh4 {[%clk 0:00:11.1]} 45. g4 {[%clk 0:00:03.4]} 45... Bg5
{[%clk 0:00:12]} 46. Bb4 {[%clk 0:00:02.1]} 46... d3 {[%clk 0:00:08.5]} 47. Kf2
{[%clk 0:00:02.6]} 47... d2 {[%clk 0:00:09.4]} 48. Bc2 {[%clk 0:00:02.5]} 48...
Kf7 {[%clk 0:00:09.5]} 49. Bb3+ {[%clk 0:00:02.2]} 49... Ke7 {[%clk 0:00:10]}
50. Kf3 {[%clk 0:00:02.2]} 50... Bd3 {[%clk 0:00:07.7]} 51. Bd1 {[%clk 0:00:02]}
51... Ke6 {[%clk 0:00:06]} 52. Bb3+ {[%clk 0:00:02.7]} 52... Kd7 {[%clk
0:00:06.6]} 53. Bd1 {[%clk 0:00:02.9]} 53... Kc7 {[%clk 0:00:06.9]} 54. Kf2
{[%clk 0:00:02.1]} 54... Kb7 {[%clk 0:00:07.1]} 55. Be2 {[%clk 0:00:02.2]} 55...
Bc2 {[%clk 0:00:06.8]} 56. Bc3 {[%clk 0:00:01.7]} 56... d1=Q {[%clk 0:00:07]}
57. Bxd1 {[%clk 0:00:02.4]} 57... Bxd1 {[%clk 0:00:07.9]} 58. Kg3 {[%clk
0:00:03]} 58... Ka6 {[%clk 0:00:07.9]} 0-1

[Event "Early-Titled-Tuesday-Blitz-October-24-2023"]
[Site "Chess.com"]
[Date "2023.10.24"]
[Round "4"]
[White "Witik"]
[Black "Meri-Arabidze"]
[Result "0-1"]
[WhiteElo "2788"]
[BlackElo "2575"]
[TimeControl "180+1"]
[EndTime "8:38:39 PDT"]
[Termination "Meri-Arabidze won by resignation"]

1. e4 {[%clk 0:02:59.7]} 1... d6 {[%clk 0:03:00.1]} 2. d4 {[%clk 0:02:59.7]}
2... g6 {[%clk 0:02:59.6]} 3. Nf3 {[%clk 0:02:58.9]} 3... Bg7 {[%clk 0:02:59.8]}
4. Bc4 {[%clk 0:02:59.6]} 4... e6 {[%clk 0:02:57.6]} 5. O-O {[%clk 0:02:59]}
5... Ne7 {[%clk 0:02:57.2]} 6. Re1 {[%clk 0:02:58.9]} 6... O-O {[%clk
0:02:55.7]} 7. c3 {[%clk 0:02:58.8]} 7... a6 {[%clk 0:02:54.2]} 8. a4 {[%clk
0:02:58.6]} 8... b6 {[%clk 0:02:54.3]} 9. Nbd2 {[%clk 0:02:56.6]} 9... Bb7
{[%clk 0:02:54.5]} 10. Bd3 {[%clk 0:02:55]} 10... e5 {[%clk 0:02:51.2]} 11. dxe5
{[%clk 0:02:53.1]} 11... dxe5 {[%clk 0:02:51.5]} 12. Qc2 {[%clk 0:02:53.3]}
12... Nd7 {[%clk 0:02:51.5]} 13. b4 {[%clk 0:02:50.4]} 13... a5 {[%clk
0:02:49.1]} 14. Ba3 {[%clk 0:02:46.6]} 14... Re8 {[%clk 0:02:48.1]} 15. Nc4
{[%clk 0:02:44]} 15... axb4 {[%clk 0:02:42.2]} 16. cxb4 {[%clk 0:02:43.9]} 16...
Nc6 {[%clk 0:02:42.2]} 17. Rad1 {[%clk 0:02:24.5]} 17... Nd4 {[%clk 0:02:38.3]}
18. Nxd4 {[%clk 0:02:24.3]} 18... exd4 {[%clk 0:02:39.2]} 19. f4 {[%clk
0:02:20]} 19... Nf6 {[%clk 0:02:37.5]} 20. Ne5 {[%clk 0:02:09.4]} 20... Rxe5
{[%clk 0:02:26.2]} 21. fxe5 {[%clk 0:02:09.3]} 21... Ng4 {[%clk 0:02:26.9]} 22.
e6 {[%clk 0:02:03.7]} 22... fxe6 {[%clk 0:02:18.4]} 23. Bc4 {[%clk 0:02:02.3]}
23... Qd6 {[%clk 0:02:04.9]} 24. e5 {[%clk 0:01:29.2]} 24... Nxe5 {[%clk
0:01:47.5]} 25. Qb3 {[%clk 0:01:20.3]} 25... Nxc4 {[%clk 0:01:35.8]} 26. Qxc4
{[%clk 0:01:20.3]} 26... Bd5 {[%clk 0:01:36.5]} 27. Qc2 {[%clk 0:01:15.2]} 27...
e5 {[%clk 0:01:29.8]} 28. Bc1 {[%clk 0:00:57.2]} 28... c5 {[%clk 0:01:11.2]} 29.
bxc5 {[%clk 0:00:46.4]} 29... Qxc5 {[%clk 0:01:12.1]} 30. Qf2 {[%clk 0:00:38.1]}
30... Rxa4 {[%clk 0:01:01.7]} 31. Bg5 {[%clk 0:00:37.3]} 31... Ra2 {[%clk
0:00:59.2]} 32. Rd2 {[%clk 0:00:28.3]} 32... Rxd2 {[%clk 0:00:55.6]} 33. Qxd2
{[%clk 0:00:28.5]} 33... e4 {[%clk 0:00:42.6]} 34. Rc1 {[%clk 0:00:24.8]} 34...
Qf8 {[%clk 0:00:36.3]} 35. Rf1 {[%clk 0:00:21]} 35... Qc5 {[%clk 0:00:30.7]} 36.
Rc1 {[%clk 0:00:18.9]} 36... Qf8 {[%clk 0:00:30.6]} 37. Rf1 {[%clk 0:00:18.7]}
37... Qe8 {[%clk 0:00:26.2]} 38. Qb4 {[%clk 0:00:05.1]} 38... e3 {[%clk
0:00:21.9]} 39. Qd6 {[%clk 0:00:04.2]} 39... Bf7 {[%clk 0:00:17.1]} 40. Bf6
{[%clk 0:00:04.7]} 40... e2 {[%clk 0:00:16.2]} 41. Re1 {[%clk 0:00:05.3]} 41...
Bxf6 {[%clk 0:00:12.5]} 42. Qxf6 {[%clk 0:00:05.4]} 42... d3 {[%clk 0:00:12.9]}
43. Qc3 {[%clk 0:00:02.6]} 43... Qe3+ {[%clk 0:00:12.1]} 44. Kh1 {[%clk
0:00:03.2]} 44... h5 {[%clk 0:00:06]} 45. h3 {[%clk 0:00:02.7]} 45... Qf2 {[%clk
0:00:05.4]} 46. Qd2 {[%clk 0:00:02.7]} 46... Kh7 {[%clk 0:00:04.5]} 47. Rg1
{[%clk 0:00:02.7]} 47... Bd5 {[%clk 0:00:04.3]} 48. Qxd3 {[%clk 0:00:03]} 48...
Bxg2+ {[%clk 0:00:04.3]} 49. Rxg2 {[%clk 0:00:02.4]} 49... e1=Q+ {[%clk
0:00:04.4]} 50. Kh2 {[%clk 0:00:03.2]} 50... Qe5+ {[%clk 0:00:04.7]} 51. Kh1
{[%clk 0:00:03.8]} 51... Qfe1+ {[%clk 0:00:04.4]} 52. Rg1 {[%clk 0:00:04.5]}
52... Q1e4+ {[%clk 0:00:04.4]} 53. Qxe4 {[%clk 0:00:05]} 53... Qxe4+ {[%clk
0:00:05.3]} 54. Rg2 {[%clk 0:00:05.9]} 54... b5 {[%clk 0:00:05.6]} 0-1